bitfinex-derivatives/quotes_SOLF0:USTF0_20250307
["timestamp","ask_amount","ask_price","bid_price","bid_amount"]
[1741372520126,25.75232923,145.48,145.37,3.742]
[1741372520325,36.0396,145.47,145.37,3.742]
[1741372521012,6.8774,145.4,145.36,32.02]
[1741372521217,25.75232923,145.45,145.32,25.75232923]
[1741372521423,0.04809756,145.39,145.33,32.02]
[1741372521621,0.04809756,145.39,145.34,6.8802]
[1741372521822,0.04809756,145.39,145.32,25.75232923]
[1741372521823,0.04809756,145.39,145.35,32.02]
[1741372525122,0.04809756,145.39,145.36,6.8788]
[1741372525717,0.04809756,145.39,145.35,32.02]
[1741372526521,0.04809756,145.39,145.3,11.3756]
[1741372526726,29.45342923,145.41,145.3,43.3956]
[1741372526928,0.04739105,145.36,145.3,43.3956]
[1741372527829,0.04739105,145.36,145.32,6.8809]
[1741372528131,0.04739105,145.36,145.3,35.762]
[1741372528534,6.92679105,145.36,145.3,42.6438]
[1741372528729,0.04739105,145.36,145.3,35.762]
[1741372529130,0.04739105,145.36,145.33,6.8804]
[1741372529331,0.04739105,145.36,145.3,35.762]
[1741372529531,0.04739105,145.36,145.32,25.75232923]
[1741372530032,0.04739105,145.36,145.3,35.762]
[1741372530235,0.04739105,145.36,145.33,6.8804]
[1741372530433,0.04739105,145.36,145.3,35.762]
[1741372530835,0.04739105,145.36,145.35,6.8798]
[1741372531133,0.04739105,145.36,145.35,32.02]
[1741372531333,0.04739105,145.36,145.35,38.8998]
[1741372531524,0.04739105,145.36,145.35,32.02]
[1741372532331,0.04739105,145.36,145.35,38.8998]
[1741372532722,3.7851,145.45,145.35,32.02]
[1741372532921,10.6604,145.45,145.35,32.02]
[1741372533236,3.7851,145.45,145.35,32.02]
[1741372534039,0.05247684,145.41,145.38,0.04498029]
[1741372534434,0.05247684,145.41,145.38,6.92308029]
[1741372534631,0.05247684,145.41,145.38,0.04498029]
[1741372535542,0.05247684,145.41,145.39,6.8779]
[1741372535727,0.05247684,145.41,145.38,0.04498029]
[1741372536135,0.05247684,145.41,145.4,6.8774]
[1741372536437,3.681,145.51,145.39,57.75232923]
[1741372536628,243.63422923,145.55,145.42,25.75232923]
[1741372536834,214.1502,145.55,145.45,25.75232923]
[1741372537436,214.1502,145.55,145.49,0.0436284]
[1741372537437,0.04448004,145.51,145.49,0.0436284]
[1741372538832,0.04448004,145.51,145.5,6.8727]
[1741372539137,3.7028,145.59,145.49,0.0436284]
[1741372539337,3.7028,145.59,145.54,6.8704]
[1741372539648,3.7028,145.66,145.54,25.75232923]
[1741372539942,74.85117854,145.67,145.58,6.8688]
[1741372540142,74.85117854,145.67,145.58,32.0]
[1741372540347,0.04621872,145.61,145.59,0.04514764]
[1741372540538,100.60350777,145.67,145.59,0.04514764]
[1741372540739,0.04969277,145.61,145.59,0.04514764]
[1741372540937,25.75232923,145.61,145.5,3.6716]
[1741372541234,25.75232923,145.55,145.46,32.0]
[1741372541636,32.0,145.57,145.46,32.0]
[1741372541846,25.75232923,145.58,145.46,32.0]
[1741372542341,0.0487235,145.53,145.51,0.04616044]
[1741372542542,32.62162923,145.58,145.51,0.04616044]
[1741372542844,0.04814718,145.53,145.51,0.04616044]
[1741372543049,25.75232923,145.58,145.51,0.04616044]
[1741372543548,0.04467121,145.56,145.51,0.04616044]
[1741372544742,0.04467121,145.56,145.54,6.8706]
[1741372544946,0.04467121,145.56,145.54,31.98]
[1741372545748,0.04467121,145.56,145.51,3.89456044]
[1741372547146,0.04467121,145.56,145.53,6.8711]
[1741372547348,0.04467121,145.56,145.54,31.98]
[1741372548249,6.8676,145.61,145.54,31.98]
[1741372548454,3.7593,145.63,145.54,31.98]
[1741372548753,3.7593,145.63,145.51,3.8484]
[1741372548754,25.75232923,145.62,145.51,3.8484]
[1741372548943,6.8699,145.56,145.51,35.8084]
[1741372549457,0.0520917,145.55,145.52,0.04858382]
[1741372549652,6.8712,145.53,145.52,0.04858382]
[1741372550148,6.8727,145.5,145.47,31.96]
[1741372550554,7.8982,145.54,145.47,31.96]
[1741372551456,6.8724,145.51,145.49,0.0474604]
[1741372551656,0.05125153,145.52,145.49,0.0474604]
[1741372551855,6.8727,145.5,145.49,0.0474604]
[1741372552153,0.05125153,145.52,145.49,0.0474604]
[1741372552548,6.92305153,145.52,145.49,0.0474604]
[1741372552750,0.05125153,145.52,145.49,0.0474604]
[1741372554644,0.05125153,145.52,145.51,6.8722]
[1741372555255,3.9462,145.59,145.49,29.78948963]
[1741372555558,3.9462,145.59,145.49,7.8657]
[1741372556453,0.04743237,145.55,145.53,0.04891487]
[1741372556855,0.04743237,145.55,145.54,6.8708]
[1741372557256,3.237e-05,145.55,145.54,6.8708]
[1741372558955,3.237e-05,145.55,145.53,6.92011487]
[1741372559456,3.237e-05,145.55,145.54,6.8708]
[1741372561860,3.237e-05,145.55,145.53,0.04891487]
[1741372562060,3.237e-05,145.55,145.54,6.8708]
[1741372567766,1.19562977,145.68,145.54,6.8708]
[1741372567767,193.0,145.72,145.54,15.3521]
[1741372567965,26.94754835,145.77,145.63,25.75232923]
[1741372568264,11.2207,145.78,145.66,25.75232923]
[1741372568468,11.2207,145.78,145.67,31.92]
[1741372568770,86.97746458,145.78,145.71,0.04689434]
[1741372568970,0.05153794,145.74,145.71,31.96689434]
[1741372569362,29.24386717,145.74,145.6,25.75232923]
[1741372569669,25.75232923,145.71,145.61,6.8671]
[1741372569870,35.6746,145.7,145.59,31.92]
[1741372570066,3.7546,145.7,145.6,25.75232923]
[1741372570584,0.04415977,145.66,145.64,0.04948462]
[1741372572377,0.04415977,145.66,145.56,25.75232923]
[1741372572576,4.0036,145.68,145.56,25.75232923]
[1741372572773,206.08,145.69,145.59,25.75232923]
[1741372572973,3.7546,145.7,145.62,25.75232923]
[1741372573170,31.9,145.75,145.62,25.75232923]
[1741372573377,35.761,145.75,145.62,25.75232923]
[1741372573578,0.04475591,145.7,145.67,0.04955794]
[1741372573780,0.04475591,145.7,145.67,31.94955794]
[1741372573982,31.9,145.78,145.71,6.8625]
[1741372574176,3.861,145.79,145.71,31.9]
[1741372574580,3.6313,145.8,145.74,6.8613]
[1741372574780,79.61776458,145.83,145.75,31.9]
[1741372575078,79.61776458,145.83,145.76,6.86]
[1741372575277,0.05172718,145.8,145.78,0.04893131]
[1741372578183,6.859,145.79,145.78,0.04893131]
[1741372578382,0.05172718,145.8,145.78,0.04893131]
[1741372579678,0.05172718,145.8,145.72,31.9]
[1741372579884,6.8596,145.78,145.72,31.9]
[1741372580082,31.88,145.81,145.72,31.9]
[1741372580083,3.7342,145.79,145.72,31.9]
[1741372580682,25.75232923,145.83,145.72,31.9]
[1741372580882,0.05000083,145.77,145.75,6.8609]
[1741372581082,29.48652923,145.83,145.68,3.6797]
[1741372581278,0.04540006,145.77,145.75,0.04372363]
[1741372581484,0.04540006,145.77,145.69,31.88]
[1741372581485,25.75232923,145.77,145.69,31.88]
[1741372581886,6.8614,145.74,145.69,31.88]
[1741372582089,4.01,145.76,145.69,31.88]
[1741372582490,4.01,145.76,145.66,31.86]
[1741372582788,25.80068627,145.74,145.71,2.293e-05]
[1741372583088,31.86,145.73,145.62,39.4907]
[1741372583480,6.8651,145.66,145.62,31.86]
[1741372583684,25.75232923,145.71,145.62,31.86]
[1741372583886,25.75232923,145.71,145.59,31.86]
[1741372584084,0.04793141,145.68,145.61,6.8672]
[1741372584285,0.04793141,145.68,145.59,31.86]
[1741372584484,31.86,145.69,145.59,31.86]
[1741372584695,0.04858372,145.65,145.59,31.86]
[1741372585489,0.04858372,145.65,145.56,25.75232923]
[1741372585790,31.86,145.69,145.57,31.86]
[1741372585990,0.05212519,145.62,145.57,31.86]
[1741372586185,2.519e-05,145.62,145.61,6.8674]
[1741372586385,2.519e-05,145.62,145.61,38.7274]
[1741372586587,3.807,145.7,145.61,31.86]
[1741372586786,205.92,145.79,145.66,25.75232923]
[1741372586994,205.92,145.79,145.67,31.86]
[1741372587488,7.6901,145.8,145.69,25.75232923]
[1741372587689,224.86,145.85,145.72,25.75232923]
[1741372587991,7.6901,145.84,145.73,31.86]
[1741372588195,7.6901,145.84,145.75,25.75232923]
[1741372588494,75.75676458,145.87,145.77,41.59721935]
[1741372588692,75.75676458,145.87,145.78,31.86]
[1741372588892,0.04430262,145.83,145.82,6.8571]
[1741372589090,75.75676458,145.87,145.82,38.7171]
[1741372589297,0.05167726,145.84,145.83,6.8571]
[1741372590988,0.05167726,145.84,145.82,38.7175]
[1741372591195,0.05167726,145.84,145.82,31.86]
[1741372591393,0.05167726,145.84,145.83,6.8571]
[1741372591695,0.05167726,145.84,145.82,31.86]
[1741372593501,0.05167726,145.84,145.83,6.8571]
[1741372594196,3.7275,145.94,145.87,6.855]
[1741372594498,7.7439,145.94,145.86,31.84]
[1741372594698,6.853,145.92,145.86,31.84]
[1741372594995,4.0164,145.94,145.86,31.84]
[1741372595196,4.0164,145.94,145.86,73.43721935]
[1741372595498,0.05057574,145.91,145.89,0.05073794]
[1741372596199,0.05057574,145.91,145.89,6.90493794]
[1741372596394,0.05057574,145.91,145.89,0.05073794]
[1741372596589,6.853,145.92,145.9,31.82]
[1741372596797,3.8238,145.97,145.87,31.82]
[1741372597497,3.8238,145.97,145.87,38.6751]
[1741372597696,0.04986018,145.93,145.91,0.04803686]
[1741372598000,6.8529,145.92,145.91,0.04803686]
[1741372598203,0.04986018,145.93,145.91,31.86803686]
[1741372598397,6.8513,145.96,145.91,31.86803686]
[1741372598700,49.30271935,145.98,145.91,0.04803686]
[1741372598893,41.59721935,145.95,145.91,0.04803686]
[1741372599096,6.8536,145.91,145.85,38.676]
[1741372599296,31.82,145.94,145.8,3.9506]
[1741372599599,3.971,145.9,145.8,35.7706]
[1741372599798,35.791,145.9,145.8,35.7706]
[1741372600297,35.7017,145.98,145.84,0.04738111]
[1741372600501,35.7017,145.98,145.85,73.41721935]
[1741372600502,3.971,145.97,145.85,73.41721935]
[1741372601299,3.971,145.97,145.86,7.4327]
[1741372601495,3.971,145.97,145.9,0.04944475]
[1741372601707,0.0518281,145.92,145.9,31.86944475]
[1741372601895,0.05251736,145.95,145.9,31.86944475]
[1741372602502,0.05251736,145.95,145.92,6.8526]
[1741372603404,0.05251736,145.95,145.9,31.86944475]
[1741372604703,0.05251736,145.95,145.94,6.8519]
[1741372606212,3.9318,146.02,145.96,6.8509]
[1741372606506,6.849,146.01,145.9,31.82]
[1741372606703,6.849,146.01,145.96,6.8507]
[1741372606901,4.0185,146.05,145.94,31.8]
[1741372607099,6.8483,146.02,145.97,6.8505]
[1741372607293,0.04416676,146.01,145.98,0.04811544]
[1741372607497,6.8496,145.99,145.98,0.04811544]
[1741372608805,6.8495,146.0,145.98,0.04811544]
[1741372609007,0.04416676,146.01,145.98,0.04811544]
[1741372609806,0.04416676,146.01,145.98,6.89811544]
[1741372610210,0.04416676,146.01,145.99,6.8495]
[1741372610506,0.04416676,146.01,145.98,0.04811544]
[1741372610912,0.04416676,146.01,146.0,6.8491]
[1741372611207,0.04416676,146.01,145.98,0.04811544]
[1741372611710,6.8466,146.06,145.99,31.78]
[1741372611910,6.8466,146.06,146.02,6.8482]
[1741372612208,6.8466,146.06,145.99,31.78]
[1741372612508,77.23181935,146.1,146.02,6.848]
[1741372612711,6.846,146.07,145.99,31.78]
[1741372612910,0.04404499,146.07,146.05,0.05143297]
[1741372613111,0.04404499,146.07,146.01,6.8484]
[1741372613312,6.8463,146.06,146.05,0.0499962]
[1741372613509,0.04404499,146.07,146.06,6.8463]
[1741372613704,41.59721935,146.15,146.04,0.04562608]
[1741372613705,3.7093,146.14,146.04,0.04562608]
[1741372613908,1.19153599,146.2,146.06,41.59721935]
[1741372614112,3.8532,146.19,146.07,3.911]
[1741372614318,41.59721935,146.18,146.07,3.911]
[1741372614812,0.05202442,146.14,146.11,0.04851784]
[1741372617016,6.8435,146.12,146.11,0.04851784]
[1741372617507,0.05202442,146.14,146.04,3.8506]
[1741372617816,6.8448,146.1,146.04,3.8506]
[1741372618011,45.53571935,146.15,146.04,3.8506]
[1741372618514,45.53571935,146.15,146.07,6.8455]
[1741372618712,0.04935312,146.11,146.08,0.04772062]
[1741372621216,0.04935312,146.11,146.1,6.8444]
[1741372621412,0.04935312,146.11,146.08,0.04772062]
[1741372621812,0.04935312,146.11,146.08,6.89272062]
[1741372622011,0.04935312,146.11,146.08,0.04772062]
[1741372622509,6.89345312,146.11,146.08,0.04772062]
[1741372622710,0.04935312,146.11,146.08,0.04772062]
[1741372623518,0.04935312,146.11,146.09,6.8446]
[1741372624112,0.04935312,146.11,146.08,31.78772062]
[1741372624713,0.04935312,146.11,146.08,38.63302062]
[1741372624914,0.04935312,146.11,146.08,31.78772062]
[1741372625208,0.04935312,146.11,146.09,6.8446]
[1741372625411,0.04935312,146.11,146.08,0.04772062]
[1741372625711,0.04935312,146.11,146.09,31.74]
[1741372626316,6.8449,146.09,146.08,0.04772062]
[1741372626625,0.04935312,146.11,146.08,0.04772062]
[1741372627613,6.8449,146.09,146.08,0.04772062]
[1741372628124,6.8456,146.08,146.04,31.72]
[1741372628317,0.04935312,146.11,146.04,31.72]
[1741372628518,41.59721935,146.14,146.0,3.6616]
[1741372628820,41.59721935,146.14,146.02,31.72]
[1741372629212,6.8461,146.07,146.02,38.5678]
[1741372629416,0.04838167,146.09,146.07,0.04350922]
[1741372629716,0.04617896,146.09,146.07,0.04994864]
[1741372629923,0.04617896,146.09,146.07,31.76994864]
[1741372631119,0.04617896,146.09,146.08,6.8454]
[1741372631315,0.04617896,146.09,146.07,31.76994864]
[1741372631518,6.8454,146.08,146.07,0.04994864]
[1741372631714,3.46617896,146.09,145.99,25.50706854]
[1741372632023,6.8461,146.07,146.03,6.8475]
[1741372632222,7.6634,146.08,146.03,6.8475]
[1741372632423,7.6634,146.08,145.99,25.50706854]
[1741372633021,0.04450402,146.05,146.02,0.05268109]
[1741372633323,0.04450402,146.05,146.02,31.77268109]
[1741372633728,6.89160402,146.05,146.02,0.05268109]
[1741372634133,0.04450402,146.05,146.02,0.05268109]
[1741372634324,6.8477,146.03,146.02,0.05268109]
[1741372634519,31.72,146.04,145.96,31.72]
[1741372634719,35.4298,146.04,145.92,57.22706854]
[1741372635320,35.4298,146.04,145.95,25.50706854]
[1741372635522,3.7098,146.04,145.95,25.50706854]
[1741372635726,0.04422273,146.01,145.98,0.05135679]
[1741372635916,0.04422273,146.01,145.99,6.8492]
[1741372636225,0.04422273,146.01,145.98,0.05135679]
[1741372636524,0.04420424,146.01,145.98,0.05135679]
[1741372637331,31.76420424,146.01,145.9,7.8596]
[1741372637629,3.7246,146.0,145.9,3.8903]
[1741372637923,3.7246,146.0,145.96,6.8509]
[1741372638126,3.7246,146.0,145.93,31.72]
[1741372638527,0.04489677,145.98,145.95,0.04366963]
[1741372639326,0.04489677,145.98,145.95,25.55073817]
[1741372639837,205.42,146.1,145.95,51.05780671]
[1741372640129,31.72,146.11,146.0,25.50706854]
[1741372640335,7.6068,146.12,146.01,31.72]
[1741372640526,7.6068,146.12,146.03,25.50706854]
[1741372640730,14.4503,146.12,146.06,6.846]
[1741372641034,0.04890285,146.09,146.06,0.04440167]
[1741372641726,0.04890285,146.09,146.06,25.55147021]
[1741372641933,288.86356458,146.16,146.08,6.8454]
[1741372642120,83.36356458,146.16,146.06,25.55147021]
[1741372642322,83.36356458,146.16,146.06,25.50706854]
[1741372642519,83.36356458,146.16,146.09,6.8449]
[1741372642732,7.6068,146.16,146.09,31.72]
[1741372642931,14.4485,146.16,146.09,38.5646]
[1741372643235,0.04758548,146.14,146.11,0.04981328]
[1741372643426,0.04758548,146.14,146.11,6.89341328]
[1741372644536,0.04758548,146.14,146.11,0.04981328]
[1741372644735,7.517,146.21,146.11,0.04981328]
[1741372644931,11.2661,146.21,146.1,49.16511398]
[1741372645135,18.1055,146.21,146.14,6.8424]
[1741372645336,10.5885,146.21,146.14,31.7]
[1741372645737,10.5884,146.21,146.14,38.5425]
[1741372645938,0.04711065,146.19,146.16,0.04793962]
[1741372650140,0.04711065,146.19,146.16,6.88953962]
[1741372650551,0.04711065,146.19,146.17,31.68]
[1741372650741,0.04711065,146.19,146.18,6.8407]
[1741372650942,9.07276279,146.25,146.18,41.43831398]
[1741372651141,5.20906279,146.25,146.19,31.68]
[1741372651543,1.56776279,146.25,146.19,31.68]
[1741372651934,1.56776279,146.25,146.21,6.8388]
[1741372652140,0.04336294,146.23,146.21,0.05278331]
[1741372652939,0.04336294,146.23,146.22,41.43831398]
[1741372653140,76.94693541,146.36,146.22,41.43831398]
[1741372653141,75.75676458,146.36,146.22,41.43831398]
[1741372653343,75.75676458,146.36,146.25,41.43831398]
[1741372653851,6.8345,146.32,146.25,41.43831398]
[1741372654049,75.75676458,146.36,146.25,41.43831398]
[1741372654549,0.04715502,146.3,146.27,0.05196748]
[1741372654745,273.60861398,146.38,146.27,31.68]
[1741372654951,0.05073802,146.3,146.27,31.72376092]
[1741372655137,48.92861398,146.38,146.27,31.68]
[1741372655336,7.4903,146.38,146.27,31.73105819]
[1741372655542,7.4903,146.38,146.31,6.8343]
[1741372655543,6.8329,146.35,146.31,6.8343]
[1741372655742,7.4903,146.38,146.31,38.4943]
[1741372655939,7.4903,146.38,146.31,31.66]
[1741372656141,75.75676458,146.4,146.31,31.66]
[1741372656349,75.75676458,146.4,146.34,41.43831398]
[1741372656544,75.75676458,146.4,146.36,6.8323]
[1741372656745,75.75676458,146.4,146.39,41.43831398]
[1741372656746,12.201912,146.4,146.39,41.43831398]
[1741372656945,113.63514687,146.41,146.39,73.09831398]
[1741372657151,113.63514687,146.41,146.4,6.8304]
[1741372657342,113.63514687,146.41,146.39,73.09831398]
[1741372657343,233.92906467,146.44,146.39,76.51831398]
[1741372657546,233.92906467,146.44,146.4,31.66]
[1741372657850,187.18744421,146.42,146.41,31.66]
[1741372658050,187.18744421,146.42,146.39,0.05141317]
[1741372658348,187.18744421,146.42,146.31,31.66]
[1741372658550,3.7218,146.41,146.31,31.66]
[1741372658750,3.7218,146.41,146.33,41.43831398]
[1741372658946,187.13809976,146.42,146.33,41.43831398]
[1741372659654,0.04963272,146.39,146.36,0.05045243]
[1741372659952,6.8318,146.37,146.36,0.05045243]
[1741372660149,0.04963272,146.39,146.27,41.43831398]
[1741372660454,41.43831398,146.4,146.28,31.64]
[1741372660754,31.64,146.41,146.3,41.43831398]
[1741372661052,6.8313,146.39,146.36,41.43831398]
[1741372661253,0.05030116,146.37,146.36,41.43831398]
[1741372661453,0.05030116,146.37,146.34,31.6897336]
[1741372661650,6.8327,146.35,146.34,0.0497336]
[1741372661955,0.05030116,146.37,146.34,0.0497336]
[1741372662658,0.05030116,146.37,146.35,31.64]
[1741372663454,0.05030116,146.37,146.36,41.43831398]
[1741372663659,3.9932,146.43,146.36,41.43831398]
[1741372663954,205.12,146.58,146.42,41.43831398]
[1741372664165,205.12,146.58,146.45,41.43831398]
[1741372664166,3.9932,146.54,146.45,41.43831398]
[1741372664752,0.04354842,146.51,146.48,0.05031076]
[1741372664959,0.04354842,146.51,146.48,31.67031076]
[1741372666059,0.04354842,146.51,146.48,38.49701076]
[1741372666254,0.04354842,146.51,146.48,0.05031076]
[1741372666456,0.04354842,146.51,146.42,41.43831398]
[1741372666657,45.43151398,146.54,146.42,73.05831398]
[1741372666858,45.43151398,146.54,146.42,31.62]
[1741372667058,41.43831398,146.51,146.42,31.62]
[1741372667363,41.43831398,146.48,146.36,41.43831398]
[1741372667557,3.9633,146.47,146.33,79.89191398]
[1741372667759,0.04975367,146.43,146.41,0.04597512]
[1741372668061,0.04975367,146.43,146.33,82.27481158]
[1741372668453,41.43831398,146.45,146.33,82.27481158]
[1741372668761,31.56097427,146.44,146.33,82.27481158]
[1741372669361,0.04733386,146.4,146.37,0.04698665]
[1741372670461,0.04733386,146.4,146.38,31.6]
[1741372670766,0.04733386,146.4,146.37,0.04698665]
[1741372671264,0.04733386,146.4,146.38,6.8309]
[1741372671457,0.04733386,146.4,146.37,0.04698665]
[1741372672163,31.6,146.45,146.37,0.04698665]
[1741372672365,3.7653,146.46,146.38,6.831]
[1741372672859,10.5929,146.46,146.38,6.831]
[1741372673066,3.7653,146.46,146.36,41.43831398]
[1741372673260,4.02,146.45,146.36,41.43831398]
[1741372673458,4.02,146.45,146.4,0.04946259]
[1741372673459,0.04431257,146.42,146.4,0.04946259]
[1741372675862,0.04431257,146.42,146.36,73.03831398]
[1741372676966,0.04431257,146.42,146.39,41.43831398]
[1741372677267,0.04431257,146.42,146.41,6.8299]
[1741372678562,3.9633,146.47,146.4,31.6]
[1741372678769,3.9889,146.49,146.46,6.8273]
[1741372679066,31.6,146.54,146.43,41.43831398]
[1741372679067,3.8043,146.54,146.44,31.6]
[1741372679255,7.7932,146.54,146.44,31.6]
[1741372679459,7.7932,146.54,146.46,41.43831398]
[1741372679961,0.04871638,146.51,146.49,0.04462515]
[1741372680866,0.04871638,146.51,146.44,79.86671398]
[1741372681065,0.04871638,146.51,146.44,73.03831398]
[1741372681867,0.04871638,146.51,146.48,41.43831398]
[1741372682063,0.04871638,146.51,146.49,31.58]
[1741372682660,0.04871638,146.51,146.5,6.8258]
[1741372683463,204.96,146.61,146.5,6.8258]
[1741372683464,439.35831398,146.73,146.5,44.85831398]
[1741372683661,7.8805,146.67,146.59,41.43831398]
[1741372683970,7.8805,146.67,146.6,31.58]
[1741372684467,0.04785887,146.65,146.62,0.04777102]
[1741372684761,0.04785887,146.65,146.57,41.43831398]
[1741372684969,31.58,146.64,146.52,41.43831398]
[1741372685166,73.01831398,146.64,146.52,41.43831398]
[1741372685363,277.93831398,146.64,146.5,41.43831398]
[1741372685565,204.92,146.64,146.53,41.43831398]
[1741372686066,5.571e-05,146.6,146.59,6.8216]
[1741372686266,7.7426,146.71,146.59,31.58]
[1741372686466,7.7426,146.71,146.66,41.43831398]
[1741372686673,204.92,146.79,146.66,41.43831398]
[1741372686971,39.3226,146.78,146.66,41.43831398]
[1741372687169,31.56,146.77,146.66,41.43831398]
[1741372687371,0.04386049,146.73,146.71,0.04593104]
[1741372687875,31.60386049,146.73,146.63,73.01831398]
[1741372688167,31.56,146.73,146.63,41.43831398]
[1741372688369,41.43831398,146.71,146.57,72.99831398]
[1741372688563,6.8201,146.63,146.57,72.99831398]
[1741372688865,31.56,146.66,146.57,72.99831398]
[1741372689068,6.8175,146.68,146.6,41.43831398]
[1741372689266,31.56,146.76,146.63,41.43831398]
[1741372689464,31.56,146.76,146.66,41.43831398]
[1741372689663,6.8168,146.7,146.67,31.56]
[1741372689864,0.04453413,146.71,146.7,0.04703425]
[1741372690069,4.0048,146.75,146.65,31.56]
[1741372690363,0.05056833,146.72,146.69,0.04896296]
[1741372690562,0.05056833,146.72,146.69,73.04727694]
[1741372690865,20.6,146.91,146.69,73.04727694]
[1741372691073,1.13792829,146.88,146.76,41.43831398]
[1741372691268,7.6999,146.92,146.79,41.43831398]
[1741372691468,7.6999,146.92,146.8,31.56]
[1741372691969,31.56,146.91,146.8,31.56]
[1741372692271,0.05198645,146.87,146.85,5.14e-05]
[1741372692463,31.56,146.86,146.85,5.14e-05]
[1741372692667,38.369,146.86,146.85,5.14e-05]
[1741372692862,34.96,146.86,146.72,41.43831398]
[1741372693063,6.8135,146.77,146.7,31.56]
[1741372693372,41.43831398,146.83,146.7,31.54]
[1741372693569,7.5218,146.82,146.7,31.54]
[1741372694268,6.8137,146.76,146.75,0.04532243]
[1741372694769,0.04544324,146.77,146.7,31.54]
[1741372695075,0.04544324,146.77,146.72,41.43831398]
[1741372695472,0.04544324,146.77,146.75,41.43831398]
[1741372695670,212.0776,146.92,146.76,31.54]
[1741372695870,6.8098,146.85,146.8,41.43831398]
[1741372696177,212.0776,146.92,146.81,31.54]
[1741372696376,6.8106,146.83,146.81,31.54]
[1741372696573,31.52,146.89,146.72,41.43831398]
[1741372696778,0.04770938,146.83,146.81,0.05131158]
[1741372696972,41.43831398,146.87,146.73,31.52]
[1741372697176,41.43831398,146.84,146.73,31.52]
[1741372697376,3.7278,146.83,146.73,31.52]
[1741372697871,3.7278,146.83,146.72,41.43831398]
[1741372698081,0.04403082,146.79,146.77,0.0520186]
[1741372698278,0.04403082,146.79,146.66,31.52]
[1741372698467,72.95831398,146.81,146.66,31.52]
[1741372698671,41.43831398,146.78,146.66,31.52]
[1741372699384,0.04888309,146.73,146.71,0.04608524]
[1741372699577,6.8155,146.72,146.71,0.04608524]
[1741372699776,0.04356689,146.73,146.64,9.07015968]
[1741372699974,72.95831398,146.72,146.64,9.07015968]
[1741372700278,6.8188,146.65,146.64,9.07015968]
[1741372700482,72.95831398,146.72,146.64,9.07015968]
[1741372701080,0.05052228,146.69,146.67,0.04776967]
[1741372701382,0.05052228,146.69,146.64,9.07015968]
[1741372701684,0.05052228,146.69,146.63,27.21047905]
[1741372701986,0.05052228,146.69,146.61,41.43831398]
[1741372702279,31.52,146.68,146.64,0.05049949]
[1741372702478,41.43831398,146.66,146.56,31.52]
[1741372702674,41.43831398,146.66,146.53,31.52]
[1741372702982,41.43831398,146.63,146.5,31.52]
[1741372703178,35.475,146.62,146.48,41.43831398]
[1741372703479,3.955,146.62,146.5,41.43831398]
[1741372703677,0.05015452,146.56,146.54,0.04367048]
[1741372703867,0.05015452,146.56,146.51,41.43831398]
[1741372703868,35.475,146.69,146.55,31.52]
[1741372704074,41.43831398,146.68,146.56,41.43831398]
[1741372704472,41.43831398,146.68,146.53,41.43831398]
[1741372704882,6.8193,146.64,146.55,6.8234]
[1741372705175,0.05018406,146.62,146.59,0.04702941]
[1741372705378,35.475,146.69,146.59,41.43831398]
[1741372705568,31.52,146.72,146.62,41.43831398]
[1741372705772,0.04909191,146.65,146.62,41.43831398]
[1741372705970,31.52,146.72,146.62,41.43831398]
[1741372706169,0.05118498,146.65,146.62,41.48655327]
[1741372706382,0.04688497,146.65,146.62,41.43831398]
[1741372706576,0.04688497,146.65,146.62,0.05103885]
[1741372708582,0.04688497,146.65,146.62,6.87083885]
[1741372708775,0.04688497,146.65,146.62,0.05103885]
[1741372709080,0.04688497,146.65,146.63,31.52]
[1741372709784,0.04688497,146.65,146.62,0.05103885]
[1741372710372,31.52,146.7,146.62,0.05103885]
[1741372710576,6.818,146.67,146.62,0.05103885]
[1741372710776,31.52,146.7,146.62,0.05103885]
[1741372710973,41.43831398,146.69,146.62,0.05103885]
[1741372711179,6.8197,146.63,146.62,0.05103885]
[1741372711781,0.04774077,146.64,146.62,0.05103885]
[1741372712182,0.04774077,146.64,146.58,31.52]
[1741372712485,0.04774077,146.64,146.55,72.95831398]
[1741372712784,6.8188,146.65,146.58,41.43831398]
[1741372713085,44.76131398,146.7,146.59,31.52]